bitfinex/quotes_ETHUSD_20250623
["timestamp","ask_amount","ask_price","bid_price","bid_amount"]
[1750690300053,13.48521002,2281.1,2280.5,4.38482211]
[1750690300387,10.8581,2281.2,2280.7,4.3844691]
[1750690300584,10.8581,2281.2,2280.4,7.656]
[1750690300754,10.8581,2281.2,2280.3,4.38538297]
[1750690300955,10.8581,2281.2,2280.7,4.38443872]
[1750690301152,0.8581,2281.2,2281.1,4.38384989]
[1750690301354,0.8456,2281.4,2281.0,4.38396425]
[1750690301558,0.8456,2281.4,2280.9,4.38411549]
[1750690301861,0.8456,2281.4,2281.0,4.38399398]
[1750690302062,0.8456,2281.4,2280.8,7.656]
[1750690302253,0.8456,2281.4,2281.2,4.38358243]
[1750690302453,0.8456,2281.4,2280.8,12.04033323]
[1750690302454,0.8456,2281.4,2281.1,4.38376167]
[1750690302864,0.8456,2281.4,2281.0,4.38392707]
[1750690303464,10.0,2281.2,2281.1,4.38384989]
[1750690303664,17.76,2281.2,2281.1,4.38384989]
[1750690304086,7.76,2281.2,2281.1,4.38384989]
[1750690304391,7.76,2281.2,2281.1,5.18954989]
[1750690304899,8.6147,2281.9,2281.8,4.38250503]
[1750690305187,7.76,2281.9,2281.8,4.38250503]
[1750690305395,0.8365,2282.4,2282.0,4.38197453]
[1750690305602,0.8365,2282.4,2282.1,4.3818421]
[1750690305806,1.26955927,2282.7,2282.2,4.38164208]
[1750690306006,1.26955927,2282.7,2282.0,7.655]
[1750690306007,12.33451495,2282.7,2282.3,4.38152841]
[1750690306166,12.33451495,2282.7,2282.4,4.38132526]
[1750690306367,12.33451495,2282.7,2282.1,4.38186452]
[1750690306569,12.33451495,2282.7,2282.2,4.38163671]
[1750690307155,13.71059018,2282.5,2281.5,4.38289406]
[1750690307352,2.20695902,2282.4,2281.7,9.805]
[1750690307565,10.8359,2282.4,2282.1,4.38183216]
[1750690307756,10.8359,2282.4,2282.2,4.38166074]
[1750690308291,11.2757558,2282.7,2282.3,4.38145299]
[1750690308492,10.8422,2282.7,2282.2,12.03462563]
[1750690309083,10.8422,2282.7,2282.2,7.653]
[1750690309252,10.8422,2282.7,2282.4,4.38134407]
[1750690309778,10.8422,2282.7,2282.2,12.03462353]
[1750690309981,10.8422,2282.7,2282.4,4.38127834]
[1750690310292,0.8386,2282.9,2282.2,14.1837326]
[1750690310471,0.8386,2282.9,2282.6,4.38089261]
[1750690310671,0.8386,2282.9,2282.5,4.38114681]
[1750690310672,0.8386,2282.9,2282.5,4.3810441]
[1750690310987,10.0,2282.8,2282.2,14.1837326]
[1750690311191,10.0,2282.8,2282.4,4.38117031]
[1750690311407,10.0,2282.8,2282.5,4.38104149]
[1750690311580,8.5986,2282.9,2282.6,4.38093493]
[1750690311759,10.0,2282.8,2282.6,4.38093493]
[1750690311956,10.0,2282.8,2282.3,4.38145515]
[1750690312165,23.71059018,2282.8,2282.4,4.38133531]
[1750690312391,23.71059018,2282.8,2282.4,4.38126521]
[1750690312598,23.71059018,2282.8,2282.4,12.03226521]
[1750690313003,23.71059018,2282.8,2282.1,0.8488]
[1750690313187,23.71059018,2282.8,2281.9,4.38218775]
[1750690313188,10.8151,2282.4,2281.9,4.38218775]
[1750690313504,10.8151,2282.4,2282.1,4.38192892]
[1750690313688,10.8151,2282.4,2282.2,4.38168985]
[1750690314420,10.8151,2282.4,2282.0,7.651]
[1750690314624,13.26766902,2282.4,2282.0,7.651]
[1750690314912,10.8151,2282.4,2282.1,4.38181094]
[1750690316992,10.8151,2282.4,2282.0,4.38202119]
[1750690317500,10.8151,2282.4,2281.9,4.38214303]
[1750690318020,10.0,2282.1,2281.7,6.53160437]
[1750690318172,0.8328,2282.0,2281.7,4.38260437]
[1750690318677,0.8328,2282.0,2281.6,12.03079102]
[1750690319072,0.8328,2282.0,2281.5,4.38300513]
[1750690319073,13.71059018,2281.9,2281.5,4.38300513]
[1750690319396,13.71059018,2281.9,2281.4,4.38326834]
[1750690319397,23.71059018,2281.9,2281.4,12.03014942]
[1750690319708,23.71059018,2281.9,2281.5,4.38303967]
[1750690320066,23.71059018,2281.9,2281.6,4.38278969]
[1750690320286,23.71059018,2281.9,2281.4,7.647]
[1750690320595,23.71059018,2281.9,2281.4,12.03017976]
[1750690320795,23.71059018,2281.9,2281.4,7.647]
[1750690320998,26.4103631,2281.9,2281.4,7.647]
[1750690321294,0.8274,2281.8,2281.3,7.647]
[1750690321499,1.26703564,2281.8,2281.3,7.647]
[1750690321821,1.26703564,2281.8,2281.3,12.03029599]
[1750690322021,1.26703564,2281.8,2281.3,12.03034773]
[1750690322325,10.0,2281.7,2281.3,7.646]
[1750690322622,10.0,2281.7,2281.4,4.38309215]
[1750690322794,10.0,2281.7,2281.5,4.38306449]
[1750690323286,10.8274,2281.8,2281.6,4.3828892]
[1750690323485,0.8002,2282.1,2281.4,4.38309195]
[1750690323720,8.5602,2282.4,2281.7,4.38268521]
[1750690323961,10.0,2282.3,2281.8,9.795]
[1750690324130,10.0,2282.3,2281.9,4.38217031]
[1750690324298,10.0,2282.3,2281.9,4.38231298]
[1750690324890,10.0,2282.3,2282.0,4.38210179]
[1750690325130,10.0,2282.3,2281.8,14.17738615]
[1750690325434,10.0,2282.0,2281.7,4.38269661]
[1750690325746,23.71059018,2281.8,2281.1,4.38375148]
[1750690327433,0.8289,2281.3,2281.1,2.149]
[1750690327803,0.8289,2281.3,2281.1,6.53284493]
[1750690328004,10.8659,2281.6,2281.3,4.38346236]
[1750690328235,10.8659,2281.6,2281.2,4.38356805]
[1750690328738,10.0,2281.4,2281.1,4.3838315]
[1750690328957,10.0,2281.4,2281.0,12.02793283]
[1750690329247,10.0,2281.4,2281.1,4.38382194]
[1750690329540,10.0,2281.4,2281.0,7.644]
[1750690329741,10.0,2281.4,2281.1,4.38371496]
[1750690330055,10.0,2281.4,2281.0,4.38389115]
[1750690330218,10.0,2281.4,2281.1,4.383833]
[1750690330536,10.0,2281.4,2281.0,12.02797397]
[1750690330952,10.8659,2281.6,2281.0,12.0279598]
[1750690331250,14.09954902,2281.6,2281.1,4.38384177]
[1750690331547,14.09954902,2281.6,2281.1,4.38368064]
[1750690331742,14.09954902,2281.6,2281.0,12.02693488]
[1750690331948,14.09954902,2281.6,2281.1,4.38382446]
[1750690332340,10.0,2281.4,2281.2,4.38352039]
[1750690332657,10.0,2281.4,2281.3,4.38346556]
[1750690332852,7.76,2281.5,2281.3,4.38346556]
[1750690333144,7.76,2281.5,2281.4,14.16827342]
[1750690333643,7.76,2281.5,2281.4,14.16727342]
[1750690333846,7.76,2281.5,2281.4,12.02527342]
[1750690335474,17.76,2282.0,2281.6,4.3828257]
[1750690335839,17.76,2282.0,2281.7,12.0236928]
[1750690336474,31.47059018,2282.0,2281.2,0.8738]
[1750690336652,31.47059018,2282.0,2281.6,4.38277923]
[1750690336856,31.47059018,2282.0,2281.6,12.02377923]
[1750690337073,32.08362375,2282.0,2281.6,7.641]
[1750690337673,32.08362375,2282.0,2281.6,7.64]
[1750690338942,31.47059018,2282.0,2281.6,12.02288788]
[1750690339278,31.47059018,2282.0,2281.6,7.64]
[1750690339642,31.47059018,2282.0,2281.6,12.02286909]
[1750690339844,31.47059018,2282.0,2281.2,0.8738]
[1750690340042,0.8395,2281.9,2281.4,4.38317954]
[1750690340257,0.8395,2281.9,2281.5,4.38298743]
[1750690340455,0.8395,2281.9,2281.6,7.639]
[1750690340779,0.8395,2281.9,2281.6,12.02187307]
[1750690340968,0.8395,2281.9,2281.2,0.8738]
[1750690341167,3.39945233,2281.9,2281.3,12.02139182]
[1750690341348,10.0,2281.7,2281.4,4.38324188]
[1750690341679,10.0,2281.7,2281.4,4.3832028]
[1750690341877,10.0,2281.7,2281.3,7.638]
[1750690342051,10.0,2281.7,2281.6,4.3828892]
[1750690343089,10.0,2281.7,2281.5,4.38296122]
[1750690343380,10.0,2281.7,2281.4,12.02117427]
[1750690343381,10.0,2281.7,2281.6,4.3828892]
[1750690344554,10.0,2281.7,2281.4,7.638]
[1750690344902,23.71059018,2281.7,2281.4,7.637]
[1750690345318,26.9415992,2281.7,2281.4,7.637]
[1750690345451,23.71059018,2281.7,2281.4,12.02025804]
[1750690345809,10.0,2281.7,2281.4,12.02015299]
[1750690346109,10.0,2281.7,2281.4,12.0201158]
[1750690347692,10.0,2281.7,2281.6,4.3828892]
[1750690348258,10.0,2281.7,2281.5,4.38295832]
[1750690348682,10.0,2281.7,2281.6,4.3828892]
[1750690349187,17.76,2281.8,2281.7,4.38269711]
[1750690349388,0.8477,2282.2,2281.7,4.38269711]
[1750690349688,8.6077,2282.4,2282.0,4.38200057]
[1750690349893,10.0,2282.3,2282.0,12.01600057]
[1750690350191,0.8707,2283.0,2282.1,0.8309]
[1750690350400,3.86822902,2283.0,2282.1,0.8309]
[1750690350603,0.8707,2283.0,2282.6,4.38086097]
[1750690350900,0.8707,2283.0,2282.6,7.634]
[1750690351195,0.8707,2283.0,2282.7,4.38075182]
[1750690351760,10.8707,2283.0,2282.8,4.38057872]
[1750690352703,10.97437518,2283.6,2282.9,4.38029241]
[1750690352704,0.7953,2283.4,2282.9,4.38029241]
[1750690352866,14.50589018,2283.4,2282.9,4.38037769]
[1750690353294,10.0,2283.3,2283.0,4.38013139]
[1750690353600,10.0,2283.3,2282.9,4.38023965]
[1750690353762,10.0,2283.3,2282.8,4.38047265]
[1750690353957,10.0,2283.3,2282.7,5.17569782]
[1750690354176,10.0,2283.3,2282.8,4.38058479]
[1750690355097,12.58175277,2283.3,2282.8,7.631]
[1750690355281,23.71059018,2283.3,2282.8,12.01144828]
[1750690355803,23.71059018,2283.3,2282.8,7.631]
[1750690356002,23.71059018,2283.3,2283.0,4.38010928]
[1750690356193,23.71059018,2283.3,2282.9,4.3802791]
[1750690356367,13.71059018,2283.9,2283.2,4.37969372]
[1750690356703,0.8085,2283.8,2283.2,7.629]
[1750690357007,0.8085,2283.8,2283.6,4.37901455]
[1750690357301,10.0,2283.8,2283.2,9.77]
[1750690357487,13.71059018,2283.6,2283.1,4.38000963]
[1750690357686,13.71059018,2283.6,2283.2,12.00765594]
[1750690357899,10.0,2283.5,2283.3,4.37947638]
[1750690358487,10.0,2283.8,2283.4,4.37943417]
[1750690358690,10.0,2283.8,2283.3,4.37953612]
[1750690359077,10.0,2283.8,2283.2,12.00771887]
[1750690359278,10.0,2283.8,2283.3,4.37961668]
[1750690359907,10.0,2283.8,2283.2,12.0077306]
[1750690360415,0.8454,2283.2,2282.6,4.38094002]
[1750690360601,0.8454,2283.2,2282.5,7.625]
[1750690360803,0.8454,2283.2,2282.9,4.38031962]
[1750690361192,14.55599018,2283.5,2282.9,4.38031962]
[1750690361527,14.55599018,2283.5,2282.9,4.38031562]
[1750690361715,14.55599018,2283.5,2282.9,0.8377]
[1750690362015,0.8454,2283.5,2283.2,4.37979885]
[1750690362182,7.76,2283.7,2283.3,4.37955206]
[1750690362183,10.0,2283.6,2283.3,4.37955206]
[1750690362378,10.0,2283.6,2283.4,4.37941763]
[1750690362786,10.0,2283.6,2283.5,4.37924239]
[1750690362992,10.0,2283.6,2282.9,8.4627]
[1750690363191,10.0,2283.6,2283.4,4.37933018]
[1750690363481,10.0,2283.6,2283.4,4.37928614]
[1750690363685,10.0,2283.6,2283.4,4.37934222]
[1750690364281,7.76,2283.7,2283.5,4.37916037]
[1750690364482,7.76,2283.7,2283.5,4.37914842]
[1750690364483,10.0,2283.6,2283.5,4.37914842]
[1750690365589,7.76,2283.7,2283.6,4.37905062]
[1750690365985,17.76,2283.7,2283.6,4.37905062]
[1750690366230,7.76,2283.7,2283.6,4.37905062]
[1750690367301,7.76,2283.7,2283.5,4.37914842]
[1750690367614,17.76,2284.0,2283.5,4.37914842]
[1750690368216,17.76,2284.0,2283.4,5.18365155]
[1750690368386,17.76,2284.0,2283.4,0.8043]
[1750690368591,17.76,2284.0,2283.5,4.37924239]
[1750690368925,17.76,2284.0,2283.6,4.37895747]
[1750690369739,17.76,2284.0,2283.7,4.37883565]
[1750690369939,17.76,2284.0,2283.7,4.378754]
[1750690370239,17.76,2284.0,2283.6,4.37894688]
[1750690370714,7.76,2284.0,2283.6,4.37894688]
[1750690370915,22.27059018,2284.1,2283.6,4.37894688]
[1750690371737,10.0,2284.0,2283.6,4.37894988]
[1750690373549,10.0,2284.0,2283.5,4.37915348]
[1750690373870,13.71059018,2283.8,2283.4,4.37934572]
[1750690374077,13.71059018,2283.8,2283.5,4.37916593]
[1750690374430,13.71059018,2283.8,2283.2,0.8244]
[1750690374668,10.0,2283.4,2282.6,0.8244]
[1750690374830,13.71059018,2283.0,2282.4,5.25447335]
[1750690375031,13.71059018,2282.7,2282.4,4.3813313]
[1750690375328,13.71059018,2282.7,2282.1,7.44440807]
[1750690375543,13.71059018,2282.7,2282.2,4.38162986]
[1750690375879,13.71059018,2282.7,2282.3,4.38151734]
[1750690376281,13.71059018,2282.7,2282.2,4.38164877]
[1750690376477,13.71059018,2282.7,2281.9,0.8732]
[1750690376768,13.71059018,2282.7,2281.6,0.8732]
[1750690376769,13.71059018,2282.3,2281.6,0.8732]
[1750690376969,13.71059018,2282.3,2281.8,4.38236487]
[1750690376970,0.8412,2282.2,2281.8,4.38236487]
[1750690377131,0.8412,2282.2,2281.7,4.38258372]
[1750690377332,0.8412,2282.2,2281.6,0.8732]
[1750690377333,13.71059018,2282.0,2281.6,11.99679435]
[1750690377566,13.71059018,2282.0,2281.6,4.38279435]
[1750690378131,13.71059018,2282.0,2281.7,4.38268882]
[1750690378368,10.8412,2282.2,2281.7,4.38255334]
[1750690378868,0.8152,2281.9,2281.4,7.614]
[1750690379100,0.8152,2281.9,2281.4,11.9961731]
[1750690379271,13.71059018,2281.7,2281.2,6.51458305]
[1750690379445,13.71059018,2281.7,2281.3,4.38344533]
[1750690379942,13.71059018,2281.7,2281.4,4.38327316]
[1750690380341,13.71059018,2281.7,2281.4,4.38313031]
[1750690380758,13.71059018,2281.7,2281.5,4.38306841]
[1750690381182,13.71059018,2281.7,2281.4,4.38318731]
[1750690381383,13.71059018,2281.7,2281.5,4.38306009]
[1750690382287,10.0,2281.7,2281.6,4.3828892]
[1750690382468,10.0,2281.7,2281.4,4.38316619]
[1750690382675,10.0,2281.7,2281.5,4.38306141]
[1750690382982,10.0,2281.7,2281.5,4.3829796]
[1750690383485,10.0,2281.7,2281.6,4.3828892]
[1750690383657,0.8152,2281.9,2281.3,4.38344746]
[1750690383873,0.8152,2281.9,2281.6,4.38277849]
[1750690384204,3.26777902,2281.9,2281.6,4.38277849]
[1750690384486,3.26777902,2281.9,2281.6,4.38286072]
[1750690384686,11.02777902,2281.9,2281.6,4.38286072]
[1750690384991,11.02777902,2281.9,2281.5,4.38299587]
[1750690385285,11.02777902,2281.9,2281.4,4.38320108]
[1750690385286,13.71059018,2281.8,2281.4,4.38320255]
[1750690385492,0.55,2281.3,2280.4,4.38506746]
[1750690385694,10.55,2281.1,2280.6,4.38463372]
[1750690385870,2.11373,2281.0,2280.2,0.878]
[1750690386270,2.11373,2281.0,2280.5,4.38484863]
[1750690386469,2.11373,2281.0,2280.6,4.38479892]
[1750690387191,2.11373,2281.0,2280.5,4.38490015]
[1750690387565,2.11373,2281.0,2280.6,4.38480114]
[1750690387770,2.11373,2281.0,2280.4,4.38512863]
[1750690387981,10.0,2280.8,2280.6,4.38480186]
[1750690388189,10.0,2280.8,2280.6,4.38467032]
[1750690388401,10.0,2280.8,2280.7,4.38461875]
[1750690388689,12.11373,2281.0,2280.7,4.38461875]
[1750690389256,12.11373,2281.0,2280.2,0.878]
[1750690389457,10.0,2281.0,2280.5,4.38488866]
[1750690389656,10.0,2281.0,2280.7,4.38459314]
[1750690389886,10.0,2281.0,2280.5,4.38497323]
[1750690390266,10.0,2281.0,2280.6,4.38480008]
[1750690390469,10.0,2281.0,2280.7,4.38461829]
[1750690390659,10.0,2281.0,2280.2,5.26356614]
[1750690390994,10.0,2281.0,2280.7,4.38448045]
[1750690391494,10.0,2281.0,2280.8,4.38441594]
[1750690391698,10.0,2281.0,2280.7,4.38450754]
[1750690392060,13.21668902,2281.0,2280.3,4.38535535]
[1750690392266,13.21668902,2281.0,2280.5,4.38498538]
[1750690392681,13.21668902,2281.0,2280.2,0.878]
[1750690392682,14.52519018,2280.8,2280.2,4.38544538]
[1750690392960,14.52519018,2280.8,2280.4,4.38507322]
[1750690393185,14.52519018,2280.8,2280.3,4.38528283]
[1750690393186,10.0,2280.6,2280.3,4.38528283]
[1750690393578,10.0,2280.6,2279.8,4.38634967]
[1750690393766,10.0,2280.6,2280.3,4.38528938]
[1750690394158,10.0,2280.6,2280.0,4.38596491]
[1750690394408,10.0,2280.6,2280.3,4.38526981]
[1750690394795,13.55539092,2280.6,2280.3,4.38529967]
[1750690395113,13.55539092,2280.6,2280.2,4.38546537]
[1750690395618,7.76,2280.8,2280.3,4.38538788]
[1750690395824,0.77,2281.1,2280.7,4.38455986]
[1750690396118,0.77,2281.1,2280.9,4.38412455]
[1750690396325,0.77,2281.1,2281.0,4.38404208]
[1750690396485,0.8203,2281.3,2280.6,5.1876689]
[1750690396686,0.8203,2281.3,2281.0,4.3839584]
[1750690397027,0.8203,2281.3,2280.9,4.38418519]
[1750690397386,13.71059018,2281.0,2280.7,4.38454162]
[1750690397732,2.11463,2281.3,2280.5,7.61]
[1750690397733,25.82522018,2281.3,2280.8,4.38430629]
[1750690397912,7.76,2281.8,2280.5,7.61]
[1750690397913,14.50499018,2281.7,2281.0,4.3839476]
[1750690398116,10.0,2281.6,2280.9,0.7912]
[1750690398283,10.0,2281.6,2281.1,4.38367659]
[1750690398488,10.0,2281.4,2281.1,4.38367659]
[1750690399190,8.5544,2281.7,2281.4,4.38319495]
[1750690399522,8.5544,2281.7,2281.6,4.3828892]
[1750690399733,7.76,2281.7,2281.6,4.3828892]
[1750690400047,10.0,2281.7,2281.6,4.3828892]
[1750690400220,22.28689018,2282.0,2281.6,4.3828892]
[1750690400386,14.52689018,2282.0,2281.7,4.38268499]
[1750690400591,14.52689018,2282.0,2281.6,4.38279176]
[1750690400833,10.0,2281.9,2281.6,4.38279176]
[1750690401039,10.0,2281.9,2281.5,4.38296499]
[1750690401239,12.45268902,2281.9,2281.3,4.38340643]
[1750690401391,0.8163,2282.0,2281.3,7.608]
[1750690401591,0.8163,2282.0,2281.7,4.38252552]
[1750690401896,0.833,2282.4,2281.7,4.38260499]
[1750690402119,10.0,2282.1,2281.7,4.38260499]
[1750690402313,10.0,2282.1,2281.8,4.38248887]
[1750690402513,10.0,2282.1,2281.4,5.16237285]
[1750690402792,10.0,2282.1,2281.7,4.38252228]
[1750690402998,10.0,2282.1,2281.4,0.7791]
[1750690403218,10.0,2282.1,2281.5,4.3830813]
[1750690403411,10.0,2282.1,2281.8,4.38232802]
[1750690404521,10.0,2282.1,2281.8,4.38239065]
[1750690404716,10.833,2282.4,2281.4,0.7791]
[1750690404939,10.833,2282.4,2281.8,4.38234753]
[1750690405151,14.11835902,2282.4,2281.9,4.38229519]
[1750690405502,14.11835902,2282.4,2282.0,4.38210247]
[1750690405697,7.76,2282.6,2282.3,4.3815347]
[1750690406009,7.76,2282.8,2282.5,4.38097214]
[1750690406320,10.0,2282.7,2282.6,4.38088339]
[1750690406646,7.76,2282.8,2282.7,4.38077714]
[1750690406833,7.76,2282.8,2282.4,4.3812068]
[1750690407131,7.76,2282.8,2282.7,4.38077714]
[1750690407435,0.8321,2283.2,2282.9,4.38031775]
[1750690407606,0.8321,2283.2,2282.9,4.38027732]
[1750690407806,0.8321,2283.2,2282.4,4.38135078]
[1750690408038,16.66469018,2283.4,2283.0,4.38009084]
[1750690408218,14.54269018,2283.4,2283.1,4.38000161]
[1750690408533,0.8321,2283.4,2282.8,7.604]
[1750690408736,0.8321,2283.4,2283.2,4.37969931]
[1750690409341,0.8321,2283.4,2283.0,4.38005908]
[1750690409543,0.8321,2283.4,2283.1,4.37988209]
[1750690409744,0.8321,2283.4,2283.2,4.37981085]
[1750690409951,0.8321,2283.4,2283.1,4.37989344]
[1750690410249,0.8321,2283.4,2283.2,4.37981773]
[1750690410479,10.0,2283.6,2283.3,4.37956987]
[1750690411032,14.53359018,2283.7,2283.3,4.37956987]
[1750690411033,0.823,2283.9,2283.5,4.379137]
[1750690411729,0.823,2283.9,2283.5,4.37913791]
[1750690412274,0.823,2283.9,2283.6,4.37900476]
[1750690412563,0.823,2283.9,2283.6,4.37887163]
[1750690412739,0.7691,2284.1,2283.8,4.37854206]
[1750690413068,14.51679018,2284.3,2283.9,4.37837368]
[1750690413381,0.2213009,2284.5,2283.8,7.598]
[1750690413535,10.2213009,2284.5,2284.2,4.37789734]
[1750690414246,0.2213009,2284.5,2284.2,4.37779649]
[1750690414743,0.2213009,2284.5,2284.0,4.37821606]
[1750690414744,10.2213009,2284.5,2284.0,4.37818797]
[1750690414936,10.2213009,2284.5,2283.9,0.8031]
[1750690415132,13.71059018,2284.3,2283.8,4.37858315]
[1750690415326,13.71059018,2284.3,2283.9,4.37833855]
[1750690415630,13.71059018,2284.3,2283.5,0.814]
[1750690415631,10.0,2284.2,2283.5,0.814]
[1750690415859,14.51759018,2284.0,2283.4,4.37934319]
[1750690416061,14.51759018,2284.0,2283.4,4.3793246]
[1750690416571,10.0,2284.1,2283.6,4.37893552]
[1750690416869,10.0,2284.1,2283.8,4.37854268]
[1750690417028,0.8096,2284.3,2283.7,7.594]
[1750690417368,10.0,2284.1,2283.7,7.594]
[1750690418283,10.0,2284.1,2283.2,4.37974258]
[1750690418284,13.71059018,2283.9,2283.2,4.37974258]
[1750690418783,13.71059018,2283.6,2283.0,11.97402628]
[1750690418956,13.71059018,2283.6,2283.1,4.37990964]
[1750690419155,13.71059018,2283.6,2283.1,4.37985071]
[1750690419341,0.8283,2283.7,2283.2,4.37972977]
[1750690419548,0.8283,2283.7,2283.0,7.594]
[1750690419774,0.8283,2283.7,2283.2,4.37969952]
[1750690419985,0.8283,2283.7,2283.2,4.3796598]
[1750690420342,10.0,2283.6,2283.1,4.37992849]
[1750690420755,13.71059018,2283.3,2282.7,4.38077714]
[1750690421083,13.71059018,2283.3,2283.0,4.3801952]
[1750690421244,13.71059018,2283.6,2283.0,4.3801952]
[1750690421450,10.0,2283.5,2282.7,7.592]
[1750690421750,10.0,2283.5,2283.0,4.38001269]
[1750690422664,10.0,2283.5,2283.0,8.76006264]
[1750690422852,10.0,2283.5,2283.1,4.38000179]
[1750690423250,10.0,2283.5,2283.0,4.38008056]
[1750690423575,0.8283,2283.7,2283.3,4.37950743]
[1750690423754,0.8283,2283.7,2283.3,4.37951993]
[1750690423956,0.8283,2283.7,2283.4,4.37931787]
[1750690424675,10.8283,2283.7,2283.1,4.37986725]
[1750690424852,10.8283,2283.7,2283.1,4.3798312]
[1750690425052,10.8283,2283.7,2283.2,4.37978532]
[1750690425255,13.28218902,2283.7,2283.0,4.38010214]
[1750690425458,13.71059018,2283.5,2283.0,4.38010214]
[1750690425664,13.71059018,2283.5,2283.1,4.38000569]
[1750690425867,16.9927792,2283.7,2283.2,4.37977224]
[1750690426165,10.0,2283.6,2283.2,4.37977224]
[1750690427009,10.0,2283.6,2283.0,4.38009619]
[1750690427361,7.76,2283.5,2283.0,4.38011109]
[1750690427799,7.76,2283.5,2282.9,4.38029547]
[1750690427998,13.71059018,2283.4,2282.9,4.38029547]
[1750690428358,13.71059018,2283.4,2283.0,4.38018946]
[1750690429464,13.71059018,2283.4,2283.1,4.38000057]
[1750690430281,7.76,2283.5,2283.1,4.37993451]
[1750690431265,7.76,2283.5,2283.1,4.3798393]
[1750690431461,0.7898,2283.4,2282.8,14.38048924]
[1750690431700,0.7898,2283.4,2283.0,10.0]
[1750690432000,0.7898,2283.4,2283.2,4.37976228]
[1750690432566,0.7898,2283.4,2283.1,4.37991032]
[1750690433276,0.7898,2283.4,2283.2,4.37978066]
[1750690433481,7.76,2283.5,2283.3,4.37962597]
[1750690433722,7.76,2283.6,2283.3,4.37962597]
[1750690433876,7.76,2283.6,2283.4,4.37942144]
[1750690434082,7.76,2283.6,2283.3,4.37949404]
[1750690434405,7.76,2283.6,2283.3,4.37949174]
[1750690434717,7.76,2283.6,2283.2,4.37975066]
[1750690434919,7.76,2283.6,2282.9,10.0]
[1750690435114,7.76,2283.6,2282.9,4.3803665]
[1750690435418,7.76,2283.6,2283.4,4.37935142]
[1750690435822,7.76,2283.7,2283.5,4.37924239]
[1750690436686,7.76,2283.7,2283.6,4.37905062]
[1750690437020,0.7896,2283.9,2283.6,4.37887445]
[1750690437221,0.7896,2283.9,2283.5,4.37912009]
[1750690437383,0.7896,2283.9,2283.4,4.37937725]
[1750690437588,0.7896,2283.9,2283.5,4.37906266]
[1750690438309,0.7896,2283.9,2283.4,4.37939687]
[1750690438509,0.7896,2283.9,2283.5,4.37909686]
[1750690438826,0.7896,2283.9,2283.3,11.96357052]
[1750690439397,0.7896,2283.9,2283.4,7.581]
[1750690439811,0.7896,2283.9,2283.4,11.96036448]
[1750690440318,0.7896,2283.9,2283.4,11.96029425]
[1750690440506,0.7896,2283.9,2283.4,7.581]
[1750690440820,0.7896,2283.9,2283.3,11.96054248]
[1750690441227,13.71059018,2283.5,2282.9,4.38030504]
[1750690441528,13.71059018,2283.5,2282.8,9.692]
[1750690441722,21.47059018,2283.5,2283.1,4.37988806]
[1750690442533,21.47059018,2283.5,2283.0,4.38009494]
[1750690442830,21.47059018,2283.5,2283.1,4.38000942]
[1750690443018,21.47059018,2283.5,2283.0,4.38010503]
[1750690443527,21.47059018,2283.5,2283.1,4.3800003]
[1750690443726,21.47059018,2283.5,2283.0,4.38010841]
[1750690444023,21.47059018,2283.5,2283.1,4.38000155]
[1750690444225,0.7879,2283.4,2282.9,4.38030639]
[1750690444441,0.7879,2283.4,2283.0,7.579]
[1750690444736,0.7879,2283.4,2283.1,4.37998663]
[1750690444933,0.7879,2283.4,2283.0,11.95911391]
[1750690445137,0.7879,2283.4,2283.0,11.95909953]
[1750690445332,0.7879,2283.4,2283.0,11.95908416]
[1750690445541,0.7879,2283.4,2283.1,4.37990687]
[1750690445936,7.76,2283.3,2282.4,0.7661]
[1750690446237,0.7959,2283.0,2282.5,4.3811027]
[1750690446444,7.76,2282.9,2282.7,4.38061131]
[1750690446739,17.76,2283.3,2283.2,4.37981779]
[1750690447579,0.7736,2283.6,2283.3,4.37959498]
[1750690447857,0.7736,2283.6,2283.3,11.95659498]
[1750690448077,0.7736,2283.6,2283.3,11.95646543]
[1750690448255,0.7736,2283.6,2283.3,7.577]
[1750690448455,8.5407,2283.9,2283.6,4.37904344]
[1750690448823,7.76,2283.9,2283.6,4.37904344]
[1750690449020,0.7807,2284.1,2283.4,4.37924336]
[1750690449242,0.7807,2284.3,2284.0,4.37826013]
[1750690449448,0.7807,2284.3,2284.1,4.37800255]
[1750690449624,0.2213009,2284.5,2283.8,8.4059]
[1750690449830,0.2213009,2284.5,2284.1,4.37807128]
[1750690450053,0.2213009,2284.5,2284.2,11.952886]
[1750690450259,0.2213009,2284.5,2284.2,11.95286872]
[1750690450441,0.2213009,2284.5,2284.2,7.575]
[1750690450976,0.2213009,2284.5,2284.3,4.37769775]
[1750690451328,0.2213009,2284.5,2284.1,4.37800516]
[1750690451529,0.2213009,2284.5,2284.2,7.575]
[1750690452137,10.0,2284.4,2284.0,4.3782833]
[1750690452371,10.0,2284.4,2283.9,11.95237138]
[1750690452574,10.0,2284.4,2284.0,4.37828262]
[1750690452967,10.0,2284.4,2283.8,0.8299]
[1750690453266,0.7995,2284.3,2283.7,11.95171308]
[1750690453467,0.7995,2284.3,2283.7,11.95174539]
[1750690453671,3.51976502,2284.3,2283.8,4.37864729]
[1750690453875,3.51976502,2284.3,2283.7,4.37875597]
[1750690454070,3.51976502,2284.3,2283.8,4.37864874]
[1750690454271,3.51976502,2284.3,2283.8,4.37866353]
[1750690454490,0.7995,2284.3,2283.7,11.95074774]
[1750690454654,0.7995,2284.3,2283.9,4.37847098]
[1750690454987,0.7995,2284.3,2283.7,7.572]
[1750690455192,0.7995,2284.3,2283.7,11.95082298]
[1750690455390,0.7995,2284.3,2283.8,4.37866624]
[1750690455774,0.7995,2284.3,2283.7,11.95084112]
[1750690455775,0.7995,2284.3,2283.7,7.572]
[1750690456094,0.7995,2284.3,2283.9,4.37838593]
[1750690456655,0.7995,2284.3,2284.0,4.3782759]
[1750690456855,0.7995,2284.3,2283.9,4.37839245]
[1750690457385,0.7995,2284.3,2283.8,0.7987]
[1750690457558,10.0,2284.4,2283.8,5.1772731]